Cogmind - Beta 13 @@@ ROGUE MODE // 2024.03.31 @ 21:37:04 Player: Skarma Result: Destroyed by Y-45 Defender with Heavy Assault Rifle Performance ------------- Evolutions (1) 500 Regions Visited (2) 400 Robots Destroyed (29) 145 Value Destroyed (654) 654 Prototype IDs (0) 0 Alien Tech Used (0) 0 Bonus (0) 0 TOTAL SCORE: 1699 Bonus ------- None Cogmind --------- Core Integrity 0/400 Matter 400/400 Energy 80/100 System Corruption 0% Temperature Cool (82) Movement Core (400) Ox7 Location -9/Materials Parts ------- > --- POWER (1) -------- (None) > --- PROPULSION (3) --- (None) > --- UTILITY (3) ------ Large Storage Unit Medium Matter Pod > --- WEAPON (2) ------- (None) > --- INVENTORY (15) --- Titanium Leg Titanium Leg Recoil Stabilizer Hardened Light Armor Plating EM Pulse Gun Medium Laser Small Laser Small Laser Heavy Particle Cannon Heavy Particle Cannon Autogun Peak State ------------ > --- POWER ------------ Ion Engine > --- PROPULSION ------- Titanium Leg Titanium Leg Titanium Leg > --- UTILITY ---------- Heat Sink Large Storage Unit Medium Matter Pod > --- WEAPON ----------- Heavy Particle Cannon Heavy Particle Cannon > --- INVENTORY -------- Titanium Leg Recoil Stabilizer Recoil Stabilizer Hardened Light Armor Plating EM Pulse Gun Medium Laser Small Laser Small Laser Heavy Particle Cannon Heavy Particle Cannon [Rating: 21] Favorites ----------- Power Ion Engine Engine Ion Engine Propulsion Titanium Leg Leg Titanium Leg Wheel Wheel Hover Unit Hover Unit Flight Unit Flight Unit Utility Medium Matter Pod Device Heat Sink Storage Medium Matter Pod Processor Signal Interpreter Weapon Medium Laser Energy Gun Medium Laser Energy Cannon Heavy Particle Cannon Ballistic Gun Autogun Launcher Grenade Launcher Build | -11 -10 -9 ------- Run | Yrd Mat Mat Slots Evolved 2 | . . 2 Power . | . . . Propulsion 1 | . . 1 Utility 1 | . . 1 Weapon . | . . . Parts Attached 26 | 5 11 10 Power 3 | 1 1 1 Engine 3 | 1 1 1 Core . | . . . Reactor . | . . . Propulsion 10 | 2 5 3 Treads . | . . . Leg 3 | . . 3 Wheel 4 | 2 2 . Hover 1 | . 1 . Flight 2 | . 2 . Utility 4 | . 3 1 Device 1 | . . 1 Storage 2 | . 2 . Processor 1 | . 1 . Hackware . | . . . Protection . | . . . Artifact . | . . . Weapon 9 | 2 2 5 Energy Gun 3 | 2 1 . Energy Cannon 4 | . . 4 Ballistic Gun 1 | . . 1 Ballistic Cannon . | . . . Launcher 1 | . 1 . Special Weapon . | . . . Impact Weapon . | . . . Slashing Weapon . | . . . Piercing Weapon . | . . . Special Melee Weapon . | . . . Unidentified Prototypes . | . . . Parts Lost 11 | . 4 7 Power 2 | . . 2 Propulsion 5 | . 3 2 Utility 1 | . . 1 Weapon 3 | . 1 2 Highest Loss Streak 5 | . 2 5 To Critical Strikes . | . . . Average Slot Usage (%) 79 | . 75 84 Engine 11 | . 14 7 Leg 9 | . . 20 Wheel 2 | . 4 . Hover 1 | . 2 . Flight 1 | . 1 1 Device 4 | . . 10 Storage 20 | . 19 22 Processor 2 | . 4 . Energy Gun 16 | . 25 4 Energy Cannon 7 | . . 15 Launcher 1 | . 2 . Naked Turns . | . . . Heaviest Build 40 | 6 32 40 Greatest Support 51 | 20 20 51 Greatest Overweight (x) 9 | . 9 7 Average Overweight (x) 1 | . 2 1 Largest Inventory Capacity 15 | 5 15 15 Average Capacity 12 | 5 11 15 Most Carried 15 | 5 5 15 Average Carried 6 | 2 3 9 Final Capacity 15 | 5 15 15 Final Carried 11 | 4 3 11 Class Distribution -------------------- 100% | Mutant Dominant Class ---------------- Mutant | -10/Materials Mutant | -9/Materials Resources | -11 -10 -9 ----------- Run | Yrd Mat Mat Matter Collected 665 | 218 108 339 Remotely . | . . . Salvage Created 702 | 30 213 459 Parts 61 | 4 28 29 Haulers Intercepted . | . . . Recyclers Shooed 1 | . 1 . Parts Field Recycled . | . . . Retrieved Matter . | . . . Parts Self-Destructed . | . . . Prevented . | . . . Kills | -11 -10 -9 ------- Run | Yrd Mat Mat Combat Hostiles Destroyed 23 | 1 8 14 Guns 4 | 1 3 . Cannons 14 | . . 14 AOE 5 | . 5 . Classes Destroyed 7 | 1 4 2 Worker 1 | . 1 . Builder 2 | . 2 . Watcher 3 | . 2 1 Swarmer 10 | . 3 7 Grunt 11 | 1 5 5 Brawler 1 | . . 1 Sentry 1 | . . 1 Best Kill Streak 6 | 1 6 4 Combat Bots Only 4 | 1 3 4 Max Kills in Single Turn 3 | 1 3 1 Gunslinging . | . . . Exploded 1 | . 1 . Melee . | . . . Uniques/NPCs Destroyed . | . . . Combat | -11 -10 -9 -------- Run | Yrd Mat Mat Hostile Shots Fired 197 | 4 60 133 Missed 52 | 1 19 32 Damage Taken 1799 | 33 497 1269 Core 530 | . 129 401 Absorbed by Shields . | . . . Core Remaining (%) 74 | 100 48 . Volleys Fired 70 | 3 35 32 Largest 2 | 2 2 2 Hottest 150 | 90 90 150 Shots Fired 136 | 6 70 60 Gun 71 | 6 59 6 Cannon 54 | . . 54 Launcher 11 | . 11 . Special . | . . . Kinetic 6 | . . 6 Thermal 116 | 6 56 54 Explosive 11 | . 11 . Electromagnetic 3 | . 3 . Robot Hit Streak 7 | 2 7 6 Robot Miss Streak 5 | 1 5 3 Penetration Max . | . . . Secondary Targets . | . . . Shots Hit Robots 60 | 4 30 26 Core Hits 37 | 2 20 15 Critical Kills . | . . . Critical Parts Destroyed . | . . . Critical Strikes 2 | 1 1 . Burn 2 | 1 1 . Melee Attacks . | . . . Impact . | . . . Slashing . | . . . Piercing . | . . . Sneak Attacks . | . . . Combat Hostiles . | . . . Follow-up Attacks . | . . . Damage Inflicted 1773 | 47 1020 706 Guns 491 | 47 415 29 Cannons 650 | . . 650 Explosions 603 | . 603 . Melee . | . . . Ramming 29 | . 2 27 Kinetic 29 | . . 29 Thermal 1086 | 47 389 650 Explosive 603 | . 603 . Electromagnetic 26 | . 26 . Impact . | . . . Slashing . | . . . Piercing . | . . . Highest Corruption . | . . . Average Corruption . | . . . Corruption Purged . | . . . Corruption Blocked . | . . . Overload Shots . | . . . Overflow Damage 20 | . 15 5 Projectiles 5 | . . 5 Explosions 15 | . 15 . Melee . | . . . Knockbacks . | . . . Impact . | . . . Kinetic . | . . . Secondary . | . . . Self-Inflicted Damage 108 | . 108 . Shots 5 | . 5 . Rammed 1 | . 1 . Targets Rammed 11 | . 1 10 Kicked 10 | . . 10 Crushed . | . . . Highest Temperature 282 | 102 282 273 Average Temperature 83 | 52 79 90 Received Heat Transfer 546 | 18 126 402 Siege Activations . | . . . Robots Corrupted . | . . . Combat Hostiles . | . . . Parts Fried . | . . . Impact Corruptions . | . . . Robots Melted . | . . . Combat Hostiles . | . . . Parts Melted . | . . . Heat Transferred 2310 | 210 1138 962 Parts Sabotaged . | . . . Parts Stolen . | . . . Parts Stripped . | . . . Power Chain Reactions . | . . . Alert | -11 -10 -9 ------- Run | Yrd Mat Mat Peak Influence 407 | 20 212 407 Initial 89 | . 13 89 Average 163 | 4 122 238 Maximum Alert Level 2 | . 1 2 Low Security (%) 63 | 100 87 28 Level 1 35 | . 12 69 Level 2 . | . . 2 Level 3 . | . . . Level 4 . | . . . Level 5 . | . . . High Security . | . . . Max Security . | . . . Squads Dispatched 3 | . 2 1 Investigation 1 | . 1 . Extermination . | . . . Reinforcement 2 | . 1 1 Assault . | . . . Garrison . | . . . Intercept . | . . . Searches Triggered . | . . . Construction Impeded . | . . . Haulers Reinforced . | . . . Active Scanning Responses . | . . . Cargo Convoy Interrupts . | . . . Stealth | -11 -10 -9 --------- Run | Yrd Mat Mat Distress Signals 5 | . 2 3 Communications Jammed . | . . . Distress Signals . | . . . Times Spotted 42 | 1 21 20 Peak Tracking Total 4 | 1 4 4 Tactical Retreats 1 | . 1 . Traps | -11 -10 -9 ------- Run | Yrd Mat Mat Traps Triggered 1 | . 1 . Indirectly . | . . . Trap Hack Attempts . | . . . Triggered . | . . . Disarmed . | . . . Reprogrammed . | . . . Reused . | . . . Traps Extracted . | . . . Installed . | . . . Triggered . | . . . Machines | -11 -10 -9 ---------- Run | Yrd Mat Mat Machines Disabled 4 | . 2 2 Max in Single Turn 1 | . 1 1 Machines Repaired . | . . . Machines Dismantled . | . . . Machines Sabotaged . | . . . Overloaded Fab Kills . | . . . Hacking | -11 -10 -9 --------- Run | Yrd Mat Mat Machines Accessed 1 | . 1 . Terminals . | . . . Fabricators . | . . . Repair Stations . | . . . Recycling Units 1 | . 1 . Scanalyzers . | . . . Garrison Access . | . . . Total Hacks 1 | . 1 . Successful . | . . . Failed 1 | . 1 . Catastrophic . | . . . Database Lockouts . | . . . Manual . | . . . Terminals . | . . . Fabricators . | . . . Repair Stations . | . . . Recycling Units 1 | . 1 . Scanalyzers . | . . . Garrison Access . | . . . Terminal Hacks . | . . . Fabricator Hacks . | . . . Repair Station Hacks . | . . . Recycling Unit Hacks . | . . . Scanalyzer . | . . . Garrison Access Hacks . | . . . Unauthorized Hacks . | . . . Terminals . | . . . Fabricators . | . . . Repair Stations . | . . . Recycling Units . | . . . Scanalyzers . | . . . Garrison Access . | . . . Data Cores Recovered . | . . . Used . | . . . Hacking Detections . | . . . Full Trace Events . | . . . Feedback Events . | . . . Feedback Blocked . | . . . Robot Schematics Acquired . | . . . Robots Built . | . . . Authchips . | . . . Time . | . . . Total Robot Build Rating . | . . . Part Schematics Acquired . | . . . Parts Built . | . . . Authchips . | . . . Time . | . . . Total Part Build Rating . | . . . Parts Repaired . | . . . Time . | . . . Parts Recycled . | . . . Recycled Matter . | . . . Retrieved Matter . | . . . Retrieved Components . | . . . Parts Scanalyzed . | . . . Part Schematics Acquired . | . . . Parts Damaged . | . . . Bothacking | -11 -10 -9 ------------ Run | Yrd Mat Mat Used RIF Installer . | . . . Robots Hacked . | . . . Non-combat . | . . . Combat . | . . . Robot Hacks Applied . | . . . Relay Couplers Released . | . . . Fabnet Peak Effective % . | . . . Robots Rewired . | . . . Allies Hacked . | . . . Hacks Repelled . | . . . Allies | -11 -10 -9 -------- Run | Yrd Mat Mat Total Allies . | . . . Largest Group . | . . . Highest-Rated Group . | . . . Highest-Rated Ally . | . . . Total Orders . | . . . Ally Attacks . | . . . Total Damage . | . . . Kills . | . . . Allies Corrupted . | . . . Allies Melted . | . . . Intel | -11 -10 -9 ------- Run | Yrd Mat Mat Robot Analysis Total . | . . . Derelict Logs Recovered . | . . . Drone Launches . | . . . Drone Recoveries . | . . . Exploration | -11 -10 -9 ------------- Run | Yrd Mat Mat Turns Passed 1526 | 90 798 638 Spaces Moved 652 | 85 326 241 Core 153 | 19 133 1 Treads . | . . . Legs 224 | . . 224 Wheels 204 | 66 138 . Hover 38 | . 38 . Flight 33 | . 17 16 Fastest Speed 50 | 50 80 130 Average Speed 186 | 73 206 198 Slowest Speed 600 | 80 600 600 Overloaded Moves . | . . . Propulsion Burnouts . | . . . Robots Hopped . | . . . Cave-ins Triggered . | . . . Exploration Rate (%) 27 | 5 49 27 Regions Visited 2 Branch Regions . Pre-discovered Areas . | . . . Known Exits Taken . | . . . Unknown Exits Taken 2 | 1 1 . Scrap Searched . | . . . Spaces Dug 2 | . 2 . Terrain Destroyed 136 | . 111 25 Melee . | . . . Projectile 25 | . . 25 AOE 111 | . 111 . Terrain Rammed . | . . . Walls Destroyed . | . . . Machines Disabled . | . . . Actions | -11 -10 -9 --------- Run | Yrd Mat Mat Total 826 | 107 383 336 Wait 19 | . . 19 Move 650 | 84 325 241 Hop . | . . . Pick Up 36 | 12 8 16 Fast Attach . | . . . Attach 18 | 5 6 7 Detach 3 | . . 3 Swap 8 | . 5 3 Drop 11 | 3 3 5 Fire 70 | 3 35 32 Melee . | . . . Ram 1 | . 1 . Kick 10 | . . 10 Crush . | . . . Escape Stasis . | . . . Rewire . | . . . Trap . | . . . Miscellaneous . | . . . Route ------- -11/Scrapyard -10/Materials (discovered 2 exits: [*Mat x2]) -9/Materials History --------- Turn | Location | Event 2 | -11/Scrapyard | Met Revision 17 62 | -11/Scrapyard | Discovered new exit (range 8) 91 | -11/Scrapyard | Entered Materials 195 | -10/Materials | Discovered new exit (range 10) 319 | -10/Materials | Build established: Mutant 760 | -10/Materials | Discovered new exit (range 11) 887 | -10/Materials | Core integrity fell below 50% 889 | -10/Materials | Entered another Materials area 889 | -9/Materials | Evolved 2 slots: Propulsion x1, Utility x1 1495 | -9/Materials | Core integrity fell below 50% 1519 | -9/Materials | Core integrity fell below 20% 1527 | -9/Materials | Destroyed by Y-45 Defender with Heavy Assault Rifle Last Messages --------------- Electrolysis Chamber disabled. G-34 Mercenary destroyed. R-06 Scavenger collects Lgt. Treads. R-06 Scavenger collects Hvy. Assault Rifle. R-06 Scavenger collects Sml. Laser. R-06 Scavenger collects Lgt. Armor Plating. R-06 Scavenger collects Aluminum Leg. Kicked T-07 Excavator. Kicked W-16 Scout. W-16 Scout sends out distress signal. W-16 Scout destroyed. Critical hit (Burn: +37). Kicked Y-45 Defender. Heat Sink destroyed. Titanium Leg destroyed. Kicked Y-45 Defender. Kicked Y-45 Defender out of the way. Titanium Leg destroyed. Hvy. Particle Cannon destroyed. Critical hit (Burn: +37). Map ----- +----------------------------------------------------+ | ????????????????????????? ?????????# %# | | ?????????????????######?##+########### ######## | | ???????????????? ?# + #??????? | | ???????????????? """ # ########## #??????? | | ???????????????# """ # #????????# #??????? | | ???????????????# """ + #????????# #??????? | | ???????????????# # #????????# ! #??????? | | ???????????????# ""# #????????# #??????? | | ???????????????# T?# #????????# #??????? | | ???????????????# "?# #????????######??????? | | ???????????????# ??# #????????????????????? | | ???????????????#######??# #????????????????????? | | ????????????????????????# #????????????????????? | | ????????????????????????# #?????#??????????????? | | ????????????###?????????#t #???? ??????????????? | | ???????????## ####### #???? "??????????????? | | ???????????#" #??? "??????????????? | | ????????????# #?? ???????????????? | | ???????????#" % #? ????????????????? | | ???????????#" ####### ## ?????????????????? | | ???????????####+######### #; ??????????????????? | | ??????????????# ## ;#???????????????????? | | ??????????????#""" ## ##???????????????????? | | ??????????????#""" # Y ###+#####???????????? | | ??????????????#""" %#Y ????????? | | ??????????????# %+%@T ????????? | | ??????????????#""" [ # ????????? | | ??????????????#""" # ###########?????????? | | ??????????????#""" #######???????????????????? | | ??????????????# #?????????????????????????? | | ??????????????#########??????????????????????????? | | | | | | | | | | | | | | | | | | | | | | | | | | | | | | | | | | | | | | | +----------------------------------------------------+ Best States ------------- Heat Dissipation 38 Energy Generation 10 Energy Capacity 250 Matter Stores 400 Matter Capacity 400 Sight Range 16 Terrain Scan Density 10 Evasion (%) 55 Item Schematics ----------------- None Robot Schematics ------------------ None Fabricated ------------ Nothing Alien Tech Used ----------------- None Achievements -------------- None Challenges ------------ None Game ------ Seed SwordLegRegenerator Manual? 0 Play Time 00:16:22 Cumulative 1.4 hours Start 2024.03.31 @ 21:21:34 End 2024.03.31 @ 21:37:04 Sessions 1 Manual Loads 0 Difficulty Rogue Special Mode None Game No. 3 Rogue 3 Adventurer 0 Explorer 0 Win Type - Total 0 Types 0/0/0/0/0/0/0/0/0 Lore% 0 Gallery% 4 Achievement% 5 Wizard Run 0 Options --------- Layout 1 ASCII 0 Keyboard 0 Movement Mouse Keybinds 0 Fullscreen 2 Font 24/Smallcaps Map View 50x35 Zoom Use 0% Tactical HUD 0 Map Filters NONE Filters NONE Steam 1 RUN: f62185fd-909b-4383-8fab-968f964f602b